[Event "Silves Open 2025"]
[Site "Fissul"]
[Date "2025.03.03"]
[Round "4.27"]
[White "Bravo Galvez, Ricardo"]
[Black "Silverio, Vitor Luis De Jesus"]
[Result "0-1"]
[Annotator "TA"]
[ECO "A86"]
[WhiteElo "2098"]
[BlackElo "2143"]
[PlyCount "84"]
[EventDate "2025.03.03"]
[EventType "swiss"]
[EventCountry "POR"]
[SourceTitle "playchess.com"]
[Source "ChessBase"]
[SourceQuality "1"]
[TimeControl "5400+30"]

{[%evp 14,84,39,30,62,-6,5,-36,-29,-25,-14,-20,-30,-33,-30,-45,0,0,33,4,53,82,106,83,90,103,108,94,269,266,247,275,352,271,290,145,145,165,145,150,232,227,242,256,254,240,271,290,370,355,397,389,445,350,352,345,439,226,543,419,558,431,549,-141,-160,-141,-185,-984,-518,-519,-520,-29987,-29988]} 1. d4 {[%emt 0:00:03]} f5 {[%emt 0:03:00]} 2. g3 {[%emt 0:00:30]} Nf6 {[%emt 0:00:30]} 3. Bg2 {[%emt 0:00:30]} g6 {[%emt 0:00:30]} 4. c4 {[%emt 0:00:30]} Bg7 {[%emt 0:00:30]} 5. Nc3 {[%emt 0:00:30]} O-O {[%emt 0:00:30]} 6. e3 {[%emt 0:00:30]} d6 {[%emt 0:00:30]} 7. Nge2 {[%emt 0:00:30]} c6 {[%emt 0:00:30]} 8. O-O {[%emt 0:00:30]} Qc7 {[%emt 0:00:30] A86: Dutch Defence: Leningrad System: Unusual lines and 5 Nh3.} 9. b4 {[%emt 0:00:30]} (9. b3 $14) 9... Be6 $146 {[%emt 0:00:30]} ({Predecessor:} 9... e5 10. Qb3 Kh8 11. Bb2 Be6 12. d5 Bg8 13. Rac1 Nbd7 14. a4 Rac8 15. Rfd1 a6 16. a5 {1-0 Brandl,L (1708)-Waechter,N (1702) GER-ch U14 Girls 2013 (9)}) 10. Qd3 {[%emt 0:00:30]} Bf7 {[%emt 0:00:30] Black is slightly better.} 11. Rb1 {[%emt 0:00:30]} Nbd7 {[%emt 0:00:30]} 12. c5 {[%emt 0:00:30]} e5 {[%emt 0:00:30]} 13. dxe5 {[%emt 0:00:30]} dxe5 {[%emt 0:00:30]} 14. e4 $1 {[%emt 0:00:30]} Rad8 {[%emt 0:00:30][%cal Od7c5]} 15. Qc2 {[%emt 0:00:30]} Rfe8 {[%emt 0:00:30]} 16. Be3 {[%emt 0:00:30]} Ng4 {[%emt 0:00:30]} (16... f4 $11 {was preferable.} 17. gxf4 exf4 18. Bxf4 (18. Nxf4 Ng4 $17) 18... Ne5) 17. Bg5 {[%emt 0:00:30]} Bf6 {[%emt 0:00:30]} 18. Bc1 {[%emt 0:00:30]} Bg7 {[%emt 0:00:30]} 19. exf5 {[%emt 0:00:30]} gxf5 {[%emt 0:00:30]} 20. Qxf5 {[%emt 0:00:30][%csl Oe5,Oh7] Black has weak pawns} Nxh2 {[%emt 0:00:30]} 21. Kxh2 $18 {[%emt 0:00:30]} Bg6 {[%emt 0:00:30] [#]} 22. Qg4 {[%emt 0:00:30]} Nf6 {[%emt 0:00:30]} (22... Bxb1 23. Nxb1) 23. Qh4 {[%emt 0:00:30]} Bxb1 {[%emt 0:00:30]} 24. Bg5 {[%emt 0:00:30]} (24. Nxb1 $18 {Hoping for Nd2.} e4 25. Kg1) 24... Bg6 $16 {[%emt 0:00:30]} 25. Bxf6 {[%emt 0:00:30]} Bxf6 {[%emt 0:00:30]} 26. Qxf6 {[%emt 0:00:30]} Rf8 {[%emt 0:00:30]} (26... Qe7 $16 {is a better defense.} 27. Ne4 Bxe4 28. Qxe7 Rxe7) 27. Qg5 {[%emt 0:00:30]} Rf5 {[%emt 0:00:30]} 28. Qe3 {[%emt 0:00:30]} Rd3 {[%emt 0:00:30]} 29. Qc1 {[%emt 0:00:30]} (29. Qxd3 $2 Rh5+ 30. Kg1 Bxd3 $19) 29... Qd7 {[%emt 0:00:30]} 30. Ne4 {[%emt 0:00:30]} Qf7 {[%emt 0:00:30]} 31. Nd6 {[%emt 0:00:30]} Rh5+ {[%emt 0:00:30]} 32. Kg1 {[%emt 0:00:30]} Qxa2 {[%emt 0:00:30]} 33. Nc3 {[%emt 0:00:30]} Qe6 {[%emt 0:00:30]} 34. Nce4 {[%emt 0:00:30]} (34. Nxb7 Qb3 35. Ne4 Bxe4 36. Bxe4 Rxg3+ 37. fxg3 Qxg3+ 38. Bg2 Qh2+ 39. Kf2 Rf5+ 40. Ke3 (40. Ke1 Qg3+ 41. Kd1 Qg4+ $18) 40... Qg3+ 41. Ke4 Qg4+ 42. Kd3 e4+ 43. Kc4 (43. Bxe4 Qh3+ $18) 43... Rg5) 34... Rd4 {[%emt 0:00:30]} 35. f4 {[%emt 0:00:30]} (35. Bf3 $142 Bxe4 36. Bxh5) 35... Kg7 $2 {[%emt 0:00:30]} (35... Bxe4 {is a better chance.} 36. Nxe4 (36. Bxe4 Qh3 $16) 36... Rxe4) 36. Ng5 {[%emt 0:00:30] Excellent horsemanship.} Qb3 {[%emt 0:00:30]} 37. f5 {[%emt 0:00:30]} (37. Nxb7 Qxg3 38. Ne6+ Kh8 39. Nxd4 Qh2+ 40. Kf2 Qh4+ 41. Ke2 Qg3 $16) 37... Qxg3 {[%emt 0:00:30]} 38. f6+ $2 {[%emt 0:00:30]} ({White has to play} 38. Ne6+ $18 Kh8 39. Nxd4 (39. fxg6 Qh2+ 40. Kf2 Rg4 $18) 39... Qh2+ 40. Kf2 Qh4+ 41. Ke2 Qg4+ 42. Nf3 (42. Bf3 Qxd4 43. Rf2 Rxf5 $18)) 38... Kg8 $17 {[%emt 0:00:30] ...Rdh4 is the strong threat. Dancing on a razor blade.} 39. f7+ {[%emt 0:00:30]} Bxf7 $1 {[%emt 0:00:30][%cal Od4h4] ( -> ...Rdh4!)} 40. Ngxf7 $2 {[%emt 0:00:30]} (40. Nge4 Qh2+ 41. Kf2 Rxe4 42. Nxe4 Rf5+ 43. Ke1 (43. Ke3 $2 Qxg2 44. Rxf5 Qh3+ 45. Ke2 Qxf5 $19) 43... Qxg2 44. Nf6+ Rxf6 45. Rxf6) 40... Qh2+ {[%emt 0:00:30]} (40... Rxb4 $2 {loses.} 41. Nh6+ Rxh6 42. Qxh6 $18) 41. Kf2 {[%emt 0:00:30][%cal Of7h6]} Rf4+ {[%emt 0:00:30]} ({Stronger than} 41... Rxb4 42. Rg1 $11) 42. Ke1 {[%emt 0:00:30] [#]} (42. Qxf4 $19 Qxf4+ (42... exf4 $2 43. Re1 $19) 43. Ke2 Qxb4 44. Rf3) 42... Qg3+ {[%emt 0:00:30] What a bad dream for White.   Weighted Error Value: White=0.78/Black=0.72  Loses game:     	---       	Black=1      Missed win:     	White=1     	---        Mistake:       	White=5     	Black=3      Inaccurate:     	White=2     	Black=4      OK:         	White=5     	Black=10     Best:        	White=5     	Black=1      Strong:       	White=1     	Black=1} 0-1

[Event "Silves Open 2025"]
[Site "Fissul"]
[Date "2025.03.03"]
[Round "4.28"]
[White "Ruiz Esteban, Ruben"]
[Black "Finkler, Kai Andreas"]
[Result "0-1"]
[Annotator "TA"]
[ECO "B05"]
[WhiteElo "1655"]
[BlackElo "1990"]
[PlyCount "54"]
[EventDate "2025.03.03"]
[EventType "swiss"]
[EventCountry "POR"]
[SourceTitle "playchess.com"]
[Source "ChessBase"]
[SourceQuality "1"]
[TimeControl "5400+30"]

{[%evp 10,54,66,60,52,0,29,27,28,-17,-28,-77,-70,-84,-83,-73,-73,-120,-122,-200,-197,-196,-65,-69,-54,-76,-67,-335,-66,-78,-63,-86,-46,-62,-56,-159,-152,-484,-483,-530,-545,-746,-743,-720,-731,-1184,-511]} 1. e4 {[%emt 0:00:04][%cal Be2e4,Be4e5][%mdl 32]} Nf6 {[%emt 0:00:09][%cal Bg8f6,Bf6d5,Bd5b4][%mdl 32]} 2. e5 {[%emt 0:00:17]} Nd5 {[%emt 0:00:02]} 3. d4 {[%emt 0:00:15]} d6 {[%emt 0:00:09]} 4. Nf3 {[%emt 0:00:23]} Bg4 {[%emt 0:00:11]} 5. Be2 {[%emt 0:00:26]} Nc6 {[%emt 0:00:13]} 6. O-O {[%emt 0:07:42]} dxe5 {[%emt 0:09:49] B05: Alekhine's Defence: 4 Nf3 Bg4.} 7. dxe5 {[%emt 0:04:49]} (7. Nxe5 $14 Nxe5 8. dxe5 (8. Bxg4 Nxg4 9. Qxg4 c6 $14)) 7... Ndb4 {[%emt 0:01:20]} 8. Na3 {[%emt 0:07:26] Black should prevent c3.} e6 {[%emt 0:05:59] White has an edge.} 9. Qxd8+ $146 {[%emt 0:12:11]} (9. c3 Qxd1 10. Rxd1 Nd5 11. c4 Ndb4 12. Nb5 Rc8 13. a3 Nc2 14. Ra2 a6 15. Nc3 Bxf3 16. Bxf3 {1-0 Dogge,M-Goverde,R Vlissingen HZ op 05th 2001 (7)}) 9... Rxd8 {[%emt 0:00:27]} 10. Bg5 {[%emt 0:00:47]} (10. h3 $11 Bxf3 11. Bxf3) 10... Be7 $17 {[%emt 0:00:52]} 11. Bxe7 {[%emt 0:04:38]} Kxe7 {[%emt 0:00:14]} 12. h3 {[%emt 0:18:06]} Bh5 {[%emt 0:03:38] Black is more active.} 13. g4 {[%emt 0:02:47]} (13. Rfe1 $142) 13... Bg6 {[%emt 0:01:25]} 14. c3 {[%emt 0:01:55] [#]} (14. Bb5 $17 {was called for.}) 14... Nd3 $1 $19 {[%emt 0:02:44]} 15. Bxd3 {[%emt 0:02:30]} Bxd3 {[%emt 0:00:12]} (15... Rxd3 $19 16. Ne1 Rxh3) 16. Rfe1 $15 {[%emt 0:01:25]} Rd7 {[%emt 0:04:40]} 17. Rad1 {[%emt 0:04:31]} Rhd8 {[%emt 0:00:28]} 18. Kg2 $2 {[%emt 0:03:23][%mdl 8192] [#]} (18. b4 $15) 18... a6 $2 {[%emt 0:08:20]} (18... Bf1+ $1 $19 19. Kxf1 Rxd1) 19. Kg3 {[%emt 0:02:13]} h6 {[%emt 0:00:50]} 20. Re3 {[%emt 0:00:52]} Bg6 {[%emt 0:02:16]} 21. Rxd7+ {[%emt 0:00:37]} Rxd7 {[%emt 0:00:01]} 22. Re2 {[%emt 0:03:25]} ({White should try} 22. Re1 $15) 22... Rd1 $17 {[%emt 0:03:18]} 23. Nc2 $2 {[%emt 0:00:55]} (23. Ne1 $17) 23... Bd3 $19 {[%emt 0:00:47] Black is clearly winning.} 24. Ncd4 {[%emt 0:06:01]} Nxd4 {[%emt 0:01:24]} 25. Nxd4 {[%emt 0:00:58]} Bxe2 {[%emt 0:00:14]} 26. Nxe2 {[%emt 0:00:03]} Rd2 {[%emt 0:00:24][%csl LRb2,LRe2]} 27. Kg2 {[%emt 0:15:21]} Rd7 {[%emt 0:53:54] Weighted Error Value: White=0.82/Black=0.36  Loses game:     	White=2     	---        Missed win:     	---       	Black=1      Mistake:       	White=5     	Black=1      Inaccurate:     	White=2     	Black=2      OK:         	White=5     	Black=5      Best:        	White=1     	Black=2      Strong:       	---       	Black=1} (27... Rxe2 $142 28. b4 Rxa2 (28... Rxe5 $2 29. Kf3 $19)) 0-1

[Event "Silves Open 2025"]
[Site "Fissul"]
[Date "2025.03.03"]
[Round "4.29"]
[White "Peixoto, Helio Ricardo Soutin"]
[Black "Custodio, Dinis"]
[Result "1-0"]
[Annotator "TA"]
[ECO "C28"]
[WhiteElo "1918"]
[BlackElo "1582"]
[PlyCount "61"]
[EventDate "2025.03.03"]
[EventType "swiss"]
[EventCountry "POR"]
[SourceTitle "playchess.com"]
[Source "ChessBase"]
[SourceQuality "1"]
[TimeControl "5400+30"]

{[%evp 11,60,15,45,-3,29,9,65,0,28,37,28,23,41,31,216,206,204,208,420,398,632,624,610,560,714,716,658,597,596,586,722,698,918,903,1258,1144,1332,1128,1144,985,961,928,29990,29991,29997,29998,29998,29997,29998,29999,29999]} 1. e4 {[%emt 1:31:00]} e5 {[%emt 1:31:00]} 2. Bc4 {[%emt 0:00:00]} Nf6 {[%emt 0:00:00]} 3. Nc3 {[%emt 0:00:00]} Bb4 {[%emt 0:01:00]} 4. Nf3 {[%emt 0:01:30]} d6 {[%emt 0:00:00]} 5. O-O {[%emt 0:00:00]} Bg4 {[%emt 0:00:00]} 6. d3 {[%emt 0:00:00]} Nc6 {[%emt 0:00:00]} 7. Be3 {[%emt 0:00:00] Prevents Nd4. C28: Vienna Game: 2...Nf6 3 Bc4 Nc6.} (7. Nd5 $14) 7... O-O {[%emt 0:00:00][%cal Oc6d4]} 8. h3 {[%emt 0:00:00]} Bh5 {[%emt 0:00:00]} (8... Bxc3 $11 9. bxc3 Bh5) 9. a3 {[%emt 0:00:00]} (9. Nd5 $14) 9... Ba5 {[%emt 0:00:00]} 10. g4 $146 {[%emt 0:00:00]} (10. Nd5 h6 11. b4 Bb6 12. a4 Nxd5 13. exd5 Nxb4 14. a5 Bxe3 15. fxe3 c6 16. Rb1 Nxd5 17. Bxd5 cxd5 18. Rxb7 Qxa5 {0-1 Loseries,P-Peilert,M (789) Mecklenburg VP-ch U10 2018 (4.6)}) 10... Bg6 {[%emt 0:00:00]} 11. Bg5 {[%emt 0:00:00]} (11. b4 $5 Bb6 $8 12. Qd2 $11) 11... h6 {[%emt 0:00:00]} 12. Bh4 {[%emt 0:00:00]} Nd4 $2 {[%emt 0:00:00] [#] This move loses the game for Black.} (12... Bxc3 $14 13. bxc3 Qe7) 13. Nxd4 $18 {[%emt 0:00:00]} exd4 {[%emt 0:00:00]} 14. Nd5 {[%emt 0:00:00] And now b4 would win.} Bh7 $2 {[%emt 0:00:00]} (14... c6) 15. Qf3 {[%emt 0:00:00]} g5 {[%emt 0:06:00]} (15... Bg6 $142 16. Nxf6+ (16. Bxf6 gxf6 17. Nxf6+ Kg7 $16) 16... gxf6 17. Qxf6 (17. Bxf6 Qd7 $18) 17... Qxf6 18. Bxf6 Bd2 19. Bxd4 c6) 16. Nxf6+ {[%emt 0:06:00]} Kg7 {[%emt 0:00:00]} 17. Nh5+ {[%emt 0:00:00]} Kg8 {[%emt 0:00:00]} 18. Bg3 {[%emt 0:00:00]} Bg6 {[%emt 0:00:00]} 19. Nf6+ {[%emt 0:00:00]} Kg7 {[%emt 0:00:00]} 20. b4 {[%emt 0:00:00]} Bb6 {[%emt 0:00:00]} 21. e5 {[%emt 0:00:00]} Rb8 {[%emt 0:00:00]} 22. Rae1 {[%emt 0:00:00][%cal Ba1e1,Be1e7,Be7f7][%mdl 32]} a6 {[%emt 0:00:00]} 23. Nd5 {[%emt 0:00:00]} dxe5 {[%emt 0:00:00]} 24. Bxe5+ {[%emt 0:00:00]} f6 {[%emt 0:00:00] [#]} 25. Bxc7 $1 {[%emt 0:00:00]} Bxc7 {[%emt 0:00:00]} 26. Re7+ {[%emt 0:00:00]} Rf7 {[%emt 0:00:00]} 27. Qxf6+ {[%emt 0:00:00] White mates.} Kg8 {[%emt 0:00:00]} 28. Qxg6+ {[%emt 0:00:00]} Kh8 {[%emt 0:00:00]} 29. Rxf7 {[%emt 0:00:00][%csl Gg6][%cal Rf7h7]} Qg8 {[%emt 0:00:00]} 30. Qxh6+ {[%emt 0:00:00]} Qh7 {[%emt 0:00:00]} 31. Qxh7# {[%emt 0:00:00] Weighted Error Value: White=0.19 (very precise) /Black=0.92  Loses game:     	---       	Black=1      Mistake:       	White=1     	Black=3      Inaccurate:     	---       	Black=3      OK:         	White=4     	Black=2      Best:        	White=1     	---} 1-0

[Event "Silves Open 2025"]
[Site "Fissul"]
[Date "2025.03.03"]
[Round "4.30"]
[White "Tacuchian, Marcelo Oliveira"]
[Black "Ryabukhina, Veronika"]
[Result "0-1"]
[Annotator "NA RC COMBH"]
[ECO "A13"]
[WhiteElo "1620"]
[BlackElo "1880"]
[PlyCount "72"]
[EventDate "2025.03.03"]
[EventType "swiss"]
[EventCountry "POR"]
[SourceTitle "playchess.com"]
[Source "ChessBase"]
[SourceQuality "1"]
[TimeControl "5400+30"]

1. c4 {[%emt 1:31:00]} e6 {[%emt 1:31:00]} 2. g3 {[%emt 0:00:30]} d5 {[%emt 0:00:30]} 3. Bg2 {[%emt 0:00:30]} Nf6 {[%emt 0:00:30]} 4. Nf3 {[%emt 0:00:30]} c6 {[%emt 0:00:30]} 5. b3 {[%emt 0:00:30]} Bd6 {[%emt 0:00:30]} 6. Bb2 {[%emt 0:00:30] A13: English Opening: 1...e6.} O-O {[%emt 0:00:30]} 7. Qc2 {[%emt 0:00:30]} Nbd7 {[%emt 0:00:30]} 8. d3 {[%emt 0:00:30]} b6 {[%emt 0:00:30]} 9. Nbd2 {[%emt 0:00:30]} Bb7 {[%emt 0:00:30]} 10. O-O {[%emt 0:00:30]} e5 {[%emt 0:00:30]} 11. Rfd1 {[%emt 0:00:30]} Re8 {[%emt 0:00:30]} 12. Ne1 {[%emt 0:00:30]} Qe7 {[%emt 0:00:30]} 13. cxd5 {[%emt 0:00:30]} cxd5 {[%emt 0:00:30]} 14. e4 {[%emt 0:00:30]} Rac8 {[%emt 0:00:30]} 15. Qb1 {[%emt 0:00:30]} Bb8 {[%emt 0:00:30]} 16. Rc1 {[%emt 0:00:30]} Nc5 {[%emt 0:00:30]} 17. Ba3 {[%emt 0:00:30]} dxe4 {[%emt 0:00:30]} 18. Nxe4 {[%emt 0:00:30]} Nfxe4 {[%emt 0:00:30]} 19. Bxe4 {[%emt 0:00:30]} Bd6 {[%emt 0:00:30]} 20. Bxb7 {[%emt 0:00:30]} Qxb7 {[%emt 0:00:30]} 21. Rc4 {[%emt 0:00:30]} b5 {[%emt 0:00:30]} 22. Bxc5 {[%emt 0:00:30]} Bxc5 {[%emt 0:00:30]} 23. Rxc5 {[%emt 0:00:30]} Rxc5 {[%emt 0:00:30]} 24. Qd1 {[%emt 0:00:30]} Rec8 {[%emt 0:00:30]} 25. a4 {[%emt 0:00:30]} b4 {[%emt 0:00:30]} 26. Nf3 {[%emt 0:00:30]} f6 {[%emt 0:00:30]} 27. Nd2 {[%emt 0:00:30]} Qd5 $19 {[%emt 0:00:30]} 28. Ne4 {[%emt 0:00:30]} R5c7 {[%emt 0:00:30]} 29. Qf3 {[%emt 0:00:30]} Rd8 {[%emt 0:00:30]} 30. Rd1 {[%emt 0:00:30]} Qxb3 {[%emt 0:00:30]} 31. Qg4 {[%emt 0:00:30]} Qf7 {[%emt 0:00:30]} 32. h4 {[%emt 0:00:30]} Rd4 {[%emt 0:00:30]} 33. Qf3 {[%emt 0:00:30]} h6 {[%emt 0:00:30]} 34. g4 {[%emt 0:00:30]} b3 {[%emt 0:00:30]} 35. Kh2 {[%emt 0:00:30]} Qd7 {[%emt 0:00:30]} 36. Ng3 {[%emt 0:00:30]} Qxg4 {[%emt 0:00:30]} 0-1

[Event "Silves Open 2025"]
[Site "Fissul"]
[Date "2025.03.03"]
[Round "4.31"]
[White "Li, Leon"]
[Black "Almeida, Marta Dias"]
[Result "0-1"]
[Annotator "NA RC COMBH"]
[ECO "B13"]
[WhiteElo "1627"]
[BlackElo "1790"]
[PlyCount "124"]
[EventDate "2025.03.03"]
[EventType "swiss"]
[EventCountry "POR"]
[SourceTitle "playchess.com"]
[Source "ChessBase"]
[SourceQuality "1"]
[TimeControl "5400+30"]

1. e4 {[%emt 0:00:04]} c6 {[%emt 0:00:05]} 2. d4 {[%emt 0:00:27]} d5 {[%emt 0:00:06]} 3. exd5 {[%emt 0:00:38]} cxd5 {[%emt 0:00:07]} 4. Bd3 {[%emt 0:00:33]} Nc6 {[%emt 0:00:06]} 5. c3 {[%emt 0:00:35]} Nf6 {[%emt 0:00:07]} 6. Bf4 {[%emt 0:00:37]} Bg4 {[%emt 0:00:25]} 7. Nf3 {[%emt 0:00:26]} e6 {[%emt 0:00:46]} 8. Nbd2 {[%emt 0:00:43]} Bd6 {[%emt 0:00:49]} 9. Bxd6 {[%emt 0:00:33]} Qxd6 {[%emt 0:00:07]} 10. O-O {[%emt 0:01:42]} O-O {[%emt 0:01:06]} 11. h3 {[%emt 0:01:32]} Bh5 {[%emt 0:01:05]} 12. Re1 {[%emt 0:01:05]} Rac8 {[%emt 0:02:27]} 13. Nb3 {[%emt 0:03:48]} Rfe8 {[%emt 0:03:31]} 14. Bc2 {[%emt 0:02:35]} Qc7 {[%emt 0:05:52]} 15. Rc1 {[%emt 0:02:52]} b6 {[%emt 0:05:13]} 16. Qd3 {[%emt 0:03:13]} Bg6 {[%emt 0:02:11]} 17. Qd2 {[%emt 0:02:07]} Bxc2 {[%emt 0:00:47]} 18. Qxc2 {[%emt 0:01:36]} a5 {[%emt 0:02:33]} 19. Nbd2 {[%emt 0:01:18]} Qf4 {[%emt 0:10:41]} 20. Qd3 {[%emt 0:04:16]} Rc7 {[%emt 0:07:52]} 21. Qe3 {[%emt 0:01:52]} Qd6 {[%emt 0:08:47]} 22. Ne5 {[%emt 0:03:26]} Rec8 {[%emt 0:02:02]} 23. Nxc6 {[%emt 0:01:32]} Rxc6 {[%emt 0:01:03]} 24. Nf3 {[%emt 0:03:21]} a4 {[%emt 0:01:34]} 25. Ne5 {[%emt 0:01:54]} R6c7 {[%emt 0:00:11]} 26. Nd3 {[%emt 0:02:43]} a3 {[%emt 0:01:31]} 27. Re2 {[%emt 0:06:57]} axb2 {[%emt 0:00:40]} 28. Nxb2 {[%emt 0:02:36]} Qa3 {[%emt 0:01:27]} 29. Nd1 {[%emt 0:01:18]} Ne4 {[%emt 0:04:19]} 30. Rec2 {[%emt 0:02:40]} b5 {[%emt 0:02:06]} 31. f3 {[%emt 0:02:03]} Nd6 {[%emt 0:00:32]} 32. Qe2 {[%emt 0:00:46]} Rc4 {[%emt 0:03:50]} 33. Qd2 {[%emt 0:45:12]} R4c6 {[%emt 0:07:34]} 34. Ne3 {[%emt 0:00:00]} Nc4 {[%emt 0:02:09]} 35. Nxc4 {[%emt 0:00:00]} Rxc4 {[%emt 0:00:18]} 36. Kf2 {[%emt 0:00:00]} h6 {[%emt 0:01:29]} 37. Ke2 {[%emt 0:00:00]} Qa6 {[%emt 0:01:31]} 38. Ke1 {[%emt 0:00:00]} Qd6 {[%emt 0:02:42]} 39. f4 {[%emt 0:00:00]} Qe7 {[%emt 0:01:58]} 40. Qf2 {[%emt 0:00:00]} Qf6 {[%emt 0:01:04]} 41. g3 {[%emt 0:00:00]} Qf5 {[%emt 0:00:13]} 42. h4 {[%emt 0:00:00]} b4 {[%emt 0:00:29]} 43. Kd2 {[%emt 0:00:00]} Qe4 {[%emt 0:00:46]} 44. Qe3 {[%emt 0:00:00]} bxc3+ {[%emt 0:00:23]} 45. Rxc3 {[%emt 0:00:00]} Qxe3+ {[%emt 0:00:21]} 46. Rxe3 {[%emt 0:00:00]} Rxc1 {[%emt 0:00:06]} 47. Ke2 {[%emt 0:00:00]} h5 {[%emt 0:00:17]} 48. Rd3 {[%emt 0:00:00]} R8c2+ {[%emt 0:00:13]} 49. Rd2 {[%emt 0:00:00]} Rxd2+ {[%emt 0:00:06]} 50. Kxd2 {[%emt 0:00:00]} Ra1 {[%emt 0:00:05]} 51. Ke3 {[%emt 0:00:00]} Rxa2 {[%emt 0:00:07]} 52. Kf3 {[%emt 0:00:00]} Kh7 {[%emt 0:00:10]} 53. Ke3 {[%emt 0:00:00]} Kg6 {[%emt 0:00:10]} 54. f5+ {[%emt 0:00:00]} Kxf5 {[%emt 0:00:07]} 55. g4+ {[%emt 0:00:00]} hxg4 {[%emt 0:00:10]} 56. Kd3 {[%emt 0:00:00]} Ra3+ {[%emt 0:00:11]} 57. Kc2 {[%emt 0:00:00]} g3 {[%emt 0:00:05]} 58. Kb2 {[%emt 0:00:00]} Rf3 {[%emt 0:00:05]} 59. Kc2 {[%emt 0:00:00]} g2 {[%emt 0:00:07]} 60. Kd2 {[%emt 0:00:00]} g1=Q {[%emt 0:00:08]} 61. Ke2 {[%emt 0:00:00]} Qg2+ {[%emt 0:00:17]} 62. Ke1 {[%emt 0:00:00]} Rf1# {[%emt 0:00:05]} 0-1

[Event "Silves Open 2025"]
[Site "Fissul"]
[Date "2025.03.03"]
[Round "4.33"]
[White "Ribeiro, Margarida"]
[Black "Ramos, Vitorino"]
[Result "1-0"]
[Annotator "NA COMBH"]
[ECO "B01"]
[WhiteElo "1519"]
[BlackElo "1792"]
[PlyCount "65"]
[EventDate "2025.03.03"]
[EventType "swiss"]
[EventCountry "POR"]
[SourceTitle "playchess.com"]
[Source "ChessBase"]
[SourceQuality "1"]
[TimeControl "5400+30"]

1. e4 {[%emt 0:00:03]} d5 {[%emt 0:00:19]} 2. exd5 {[%emt 0:00:32]} Nf6 {[%emt 0:00:10]} 3. Nf3 {[%emt 0:01:12]} Nxd5 {[%emt 0:00:25]} 4. Bc4 {[%emt 0:00:37]} Nb6 {[%emt 0:01:14]} 5. Bb3 {[%emt 0:00:18]} c5 {[%emt 0:00:47]} 6. d3 {[%emt 0:00:48]} Nc6 {[%emt 0:01:58]} 7. O-O {[%emt 0:00:30]} Na5 {[%emt 0:08:58]} 8. Be3 {[%emt 0:02:14]} Nxb3 {[%emt 0:02:30]} 9. axb3 {[%emt 0:00:22]} Qc7 {[%emt 0:02:40]} 10. c4 {[%emt 0:01:31]} Bg4 {[%emt 0:03:31]} 11. h3 {[%emt 0:01:10]} Bh5 {[%emt 0:01:04]} 12. Nbd2 {[%emt 0:01:08]} e6 {[%emt 0:02:19]} 13. b4 {[%emt 0:13:51]} cxb4 {[%emt 0:03:33]} 14. Bxb6 {[%emt 0:01:40]} Qxb6 {[%emt 0:00:16]} 15. Qa4+ {[%emt 0:01:27]} Qc6 {[%emt 0:02:05]} 16. Qxc6+ {[%emt 0:00:55]} bxc6 {[%emt 0:00:13]} 17. Ra6 {[%emt 0:00:28]} c5 {[%emt 0:14:11]} 18. Rfa1 {[%emt 0:00:22]} Rd8 {[%emt 0:03:25]} 19. Ne5 {[%emt 0:05:03]} Be2 {[%emt 0:05:33]} 20. Rxa7 {[%emt 0:00:41]} Bh5 {[%emt 0:07:30]} 21. Ra8 {[%emt 0:03:00]} f6 {[%emt 0:03:24]} 22. g4 {[%emt 0:01:50]} fxe5 {[%emt 0:00:59]} 23. gxh5 {[%emt 0:00:21]} Be7 {[%emt 0:00:36]} 24. Rxd8+ {[%emt 0:00:45]} Bxd8 {[%emt 0:00:07]} 25. Ne4 {[%emt 0:00:12]} O-O {[%emt 0:35:13]} 26. Nxc5 {[%emt 1:02:30]} Bb6 {[%emt 0:00:00]} 27. Nxe6 {[%emt 0:00:00]} Rxf2 {[%emt 0:00:00]} 28. c5 {[%emt 0:00:00]} Bxc5 {[%emt 0:00:00]} 29. Nxc5 {[%emt 0:00:00]} Rxb2 {[%emt 0:00:00]} 30. Re1 {[%emt 0:00:00]} Kf7 {[%emt 0:00:00]} 31. Rxe5 {[%emt 0:00:00]} Kf6 {[%emt 0:00:00]} 32. d4 {[%emt 0:00:00]} Rd2 {[%emt 0:00:00]} 33. Ne4+ {[%emt 0:00:00]} 1-0